{"text_format":"3","workbook":"xlsx","n_sheets":14,"sheets":["tips","oversigt","jan","feb","mar","apr","maj","jun","jul","aug","sep","okt","nov","dec"],"not_rendered":{"charts":1,"defined_names":27},"read":"whole","date_system":"1900"}

{"sheet":"tips","index":0,"n_rows":18,"n_cols":1,"rows_kept":18}
["TIPS TIL SKABELON"]
["Er der en nem måde at skifte mellem Oversigtsarket over udgiftstendenser og de månedlige udgiftsdetaljer?"]
["Du kan hurtigt navigere til en bestemt måneds udgifter. Du skal klikke på det tilknyttede navigationslink placeret over diagrammet, f.eks Jan navigationslink i B2. Klik på Oversigts- navigationslink i D1 for at vende tilbage til regnearket over udgiftstendenser. "]
["Vælg N2 for at vende tilbage til tipsregnearket i oversigtsregnearket. I regnearket over alle måneder, skal du vælge E1."]
["Hvordan tilføjer jeg en ny udgiftstype i oversigten over omkostninger eller en ny månedlig udgift?"]
["Udgiftsoversigten under diagrammet og udgiftsdetaljerne for hver måned er Excel-tabeller. Gør et af følgende for at føje nye rækker til en Excel-tabel:"]
[{"$f":"ROW(A1)&\". Hvis tabellen ikke har en række med totaler, skal du starte med at skrive under tabellen, og den vil udvides automatisk, når du trykker på Enter eller tabulatortasten.\"","v":"1. Hvis tabellen ikke har en række med totaler, skal du starte med at skrive under tabellen, og den vil udvides automatisk, når du trykker på Enter eller tabulatortasten."}]
[{"$f":"ROW(A2)&\". Placer cellemarkøren i den sidste celle over rækken med totaler, f.eks. det samlede beløb for den seneste udgift, og tryk derefter på tabulatortasten.\"","v":"2. Placer cellemarkøren i den sidste celle over rækken med totaler, f.eks. det samlede beløb for den seneste udgift, og tryk derefter på tabulatortasten."}]
[{"$f":"ROW(A3)&\". Højreklik på tabellen og i pop op-menuen, peg på Indsæt, og klik derefter på Tabelrækker ovenfor eller Tabelrækker nedenunder.\"","v":"3. Højreklik på tabellen og i pop op-menuen, peg på Indsæt, og klik derefter på Tabelrækker ovenfor eller Tabelrækker nedenunder."}]
[{"$f":"ROW(A4)&\". Placer musen på i størrelseshåndtaget i nederste højre hjørne af tabellen, og træk ned for at øge antallet af tilgængelige rækker.\"","v":"4. Placer musen på i størrelseshåndtaget i nederste højre hjørne af tabellen, og træk ned for at øge antallet af tilgængelige rækker."}]
["Angiv udgift i oversigts- regnearket i tabellen UdgiftsOversigt i kolonnen Udgifter ."]
["Tilføj udgiftsbeløbet for hver udgiftstype i månedsregnearket, hvor udgiften er gældende."]
["for eksempel: \"Udgift 1\" forekommer i månederne jan til jun samt dec. "]
[{"$f":"ROW(A1)&\". Udgift 1 angives i oversigtsregnearket under udgifter i tabellen UdgiftsOversigt (som titel for udgiftstypen)\"","v":"1. Udgift 1 angives i oversigtsregnearket under udgifter i tabellen UdgiftsOversigt (som titel for udgiftstypen)"}]
[{"$f":"ROW(A2)&\". For hver måned udgiften forekommer skal du angive beløbet for udgiften i det tilsvarende månedsregneark.\"","v":"2. For hver måned udgiften forekommer skal du angive beløbet for udgiften i det tilsvarende månedsregneark."}]
[{"$f":"ROW(A3)&\". Udgiftstypen fra regnearket UdgiftsOversigt opretter en kategorilisten for kolonnen Kategori i hver måneds regneark.\"","v":"3. Udgiftstypen fra regnearket UdgiftsOversigt opretter en kategorilisten for kolonnen Kategori i hver måneds regneark."}]
[{"$f":"ROW(A4)&\". Bruge kategorilisten i kolonnen Kategori til at markere den tilsvarende udgift for det angivne udgiftsbeløb\"","v":"4. Bruge kategorilisten i kolonnen Kategori til at markere den tilsvarende udgift for det angivne udgiftsbeløb"}]
[{"$f":"ROW(A5)&\". Tilføj en ny række til tabellen UdgiftsOversigt i oversigtsregnearket for at tilføje nye udgifter efter måned, og angiv derefter tilsvarende udgifter detaljer i det månedsregneark, som de gælder for.\"","v":"5. Tilføj en ny række til tabellen UdgiftsOversigt i oversigtsregnearket for at tilføje nye udgifter efter måned, og angiv derefter tilsvarende udgifter detaljer i det månedsregneark, som de gælder for."}]

{"sheet":"oversigt","index":1,"n_rows":10,"n_cols":15,"rows_kept":10}
["UDGIFTSTENDENSER"]
[null,"Jan","Feb","Mar","Apr","Maj","Jun","Jul","Aug","Sep","Okt","Nov","Dec","Tips"]
[]
["Udgifter","Jan","Feb","Mar","Apr","Maj","Jun","Jul","Aug","Sep","Okt","Nov","Dec","I alt","Tendens"]
["Udgift 1",{"$f":"SUMIFS(UdgJan[Beløb],UdgJan[Kategori],UdgiftsOversigt[[#This Row],[Udgifter]])","v":{"v":33,"d":"33.00"}},{"$f":"SUMIFS(UdgFeb[Beløb],UdgFeb[Kategori],UdgiftsOversigt[[#This Row],[Udgifter]])","v":{"v":375,"d":"375.00"}},{"$f":"SUMIFS(UdgMar[Beløb],UdgMar[Kategori],UdgiftsOversigt[[#This Row],[Udgifter]])","v":{"v":33,"d":"33.00"}},{"$f":"SUMIFS(UdgApr[Beløb],UdgApr[Kategori],UdgiftsOversigt[[#This Row],[Udgifter]])","v":{"v":45,"d":"45.00"}},{"$f":"SUMIFS(UdgMaj[Beløb],UdgMaj[Kategori],UdgiftsOversigt[[#This Row],[Udgifter]])","v":{"v":375,"d":"375.00"}},{"$f":"SUMIFS(UdgJun[Beløb],UdgJun[Kategori],UdgiftsOversigt[[#This Row],[Udgifter]])","v":{"v":201,"d":"201.00"}},{"$f":"SUMIFS(UdgJul[Beløb],UdgJun[Kategori],UdgiftsOversigt[[#This Row],[Udgifter]])","v":{"v":0,"d":"0.00"}},{"$f":"SUMIFS(UdgAug[Beløb],UdgAug[Kategori],UdgiftsOversigt[[#This Row],[Udgifter]])","v":{"v":0,"d":"0.00"}},{"$f":"SUMIFS(UdgSep[Beløb],UdgSep[Kategori],UdgiftsOversigt[[#This Row],[Udgifter]])","v":{"v":0,"d":"0.00"}},{"$f":"SUMIFS(UdgOkt[Beløb],UdgOkt[Kategori],UdgiftsOversigt[[#This Row],[Udgifter]])","v":{"v":0,"d":"0.00"}},{"$f":"SUMIFS(UdgNov[Beløb],UdgNov[Kategori],UdgiftsOversigt[[#This Row],[Udgifter]])","v":{"v":0,"d":"0.00"}},{"$f":"SUMIFS(UdgDec[Beløb],UdgDec[Kategori],UdgiftsOversigt[[#This Row],[Udgifter]])","v":{"v":201,"d":"201.00"}},{"$f":"SUM(UdgiftsOversigt[[#This Row],[Jan]:[Dec]])","v":{"v":1263,"d":"1,263.00"}}]
["Udgift 2",{"$f":"SUMIFS(UdgJan[Beløb],UdgJan[Kategori],UdgiftsOversigt[[#This Row],[Udgifter]])","v":{"v":238,"d":"238.00"}},{"$f":"SUMIFS(UdgFeb[Beløb],UdgFeb[Kategori],UdgiftsOversigt[[#This Row],[Udgifter]])","v":{"v":238,"d":"238.00"}},{"$f":"SUMIFS(UdgMar[Beløb],UdgMar[Kategori],UdgiftsOversigt[[#This Row],[Udgifter]])","v":{"v":238,"d":"238.00"}},{"$f":"SUMIFS(UdgApr[Beløb],UdgApr[Kategori],UdgiftsOversigt[[#This Row],[Udgifter]])","v":{"v":123,"d":"123.00"}},{"$f":"SUMIFS(UdgMaj[Beløb],UdgMaj[Kategori],UdgiftsOversigt[[#This Row],[Udgifter]])","v":{"v":111,"d":"111.00"}},{"$f":"SUMIFS(UdgJun[Beløb],UdgJun[Kategori],UdgiftsOversigt[[#This Row],[Udgifter]])","v":{"v":98,"d":"98.00"}},{"$f":"SUMIFS(UdgJul[Beløb],UdgJun[Kategori],UdgiftsOversigt[[#This Row],[Udgifter]])","v":{"v":0,"d":"0.00"}},{"$f":"SUMIFS(UdgAug[Beløb],UdgAug[Kategori],UdgiftsOversigt[[#This Row],[Udgifter]])","v":{"v":0,"d":"0.00"}},{"$f":"SUMIFS(UdgSep[Beløb],UdgSep[Kategori],UdgiftsOversigt[[#This Row],[Udgifter]])","v":{"v":0,"d":"0.00"}},{"$f":"SUMIFS(UdgOkt[Beløb],UdgOkt[Kategori],UdgiftsOversigt[[#This Row],[Udgifter]])","v":{"v":0,"d":"0.00"}},{"$f":"SUMIFS(UdgNov[Beløb],UdgNov[Kategori],UdgiftsOversigt[[#This Row],[Udgifter]])","v":{"v":0,"d":"0.00"}},{"$f":"SUMIFS(UdgDec[Beløb],UdgDec[Kategori],UdgiftsOversigt[[#This Row],[Udgifter]])","v":{"v":440,"d":"440.00"}},{"$f":"SUM(UdgiftsOversigt[[#This Row],[Jan]:[Dec]])","v":{"v":1486,"d":"1,486.00"}}]
["Udgift 3",{"$f":"SUMIFS(UdgJan[Beløb],UdgJan[Kategori],UdgiftsOversigt[[#This Row],[Udgifter]])","v":{"v":110,"d":"110.00"}},{"$f":"SUMIFS(UdgFeb[Beløb],UdgFeb[Kategori],UdgiftsOversigt[[#This Row],[Udgifter]])","v":{"v":110,"d":"110.00"}},{"$f":"SUMIFS(UdgMar[Beløb],UdgMar[Kategori],UdgiftsOversigt[[#This Row],[Udgifter]])","v":{"v":110,"d":"110.00"}},{"$f":"SUMIFS(UdgApr[Beløb],UdgApr[Kategori],UdgiftsOversigt[[#This Row],[Udgifter]])","v":{"v":125,"d":"125.00"}},{"$f":"SUMIFS(UdgMaj[Beløb],UdgMaj[Kategori],UdgiftsOversigt[[#This Row],[Udgifter]])","v":{"v":333,"d":"333.00"}},{"$f":"SUMIFS(UdgJun[Beløb],UdgJun[Kategori],UdgiftsOversigt[[#This Row],[Udgifter]])","v":{"v":122,"d":"122.00"}},{"$f":"SUMIFS(UdgJul[Beløb],UdgJun[Kategori],UdgiftsOversigt[[#This Row],[Udgifter]])","v":{"v":0,"d":"0.00"}},{"$f":"SUMIFS(UdgAug[Beløb],UdgAug[Kategori],UdgiftsOversigt[[#This Row],[Udgifter]])","v":{"v":0,"d":"0.00"}},{"$f":"SUMIFS(UdgSep[Beløb],UdgSep[Kategori],UdgiftsOversigt[[#This Row],[Udgifter]])","v":{"v":0,"d":"0.00"}},{"$f":"SUMIFS(UdgOkt[Beløb],UdgOkt[Kategori],UdgiftsOversigt[[#This Row],[Udgifter]])","v":{"v":0,"d":"0.00"}},{"$f":"SUMIFS(UdgNov[Beløb],UdgNov[Kategori],UdgiftsOversigt[[#This Row],[Udgifter]])","v":{"v":0,"d":"0.00"}},{"$f":"SUMIFS(UdgDec[Beløb],UdgDec[Kategori],UdgiftsOversigt[[#This Row],[Udgifter]])","v":{"v":122,"d":"122.00"}},{"$f":"SUM(UdgiftsOversigt[[#This Row],[Jan]:[Dec]])","v":{"v":1032,"d":"1,032.00"}}]
["Udgift 4",{"$f":"SUMIFS(UdgJan[Beløb],UdgJan[Kategori],UdgiftsOversigt[[#This Row],[Udgifter]])","v":{"v":426,"d":"426.00"}},{"$f":"SUMIFS(UdgFeb[Beløb],UdgFeb[Kategori],UdgiftsOversigt[[#This Row],[Udgifter]])","v":{"v":84,"d":"84.00"}},{"$f":"SUMIFS(UdgMar[Beløb],UdgMar[Kategori],UdgiftsOversigt[[#This Row],[Udgifter]])","v":{"v":84,"d":"84.00"}},{"$f":"SUMIFS(UdgApr[Beløb],UdgApr[Kategori],UdgiftsOversigt[[#This Row],[Udgifter]])","v":{"v":426,"d":"426.00"}},{"$f":"SUMIFS(UdgMaj[Beløb],UdgMaj[Kategori],UdgiftsOversigt[[#This Row],[Udgifter]])","v":{"v":125,"d":"125.00"}},{"$f":"SUMIFS(UdgJun[Beløb],UdgJun[Kategori],UdgiftsOversigt[[#This Row],[Udgifter]])","v":{"v":187,"d":"187.00"}},{"$f":"SUMIFS(UdgJul[Beløb],UdgJun[Kategori],UdgiftsOversigt[[#This Row],[Udgifter]])","v":{"v":0,"d":"0.00"}},{"$f":"SUMIFS(UdgAug[Beløb],UdgAug[Kategori],UdgiftsOversigt[[#This Row],[Udgifter]])","v":{"v":0,"d":"0.00"}},{"$f":"SUMIFS(UdgSep[Beløb],UdgSep[Kategori],UdgiftsOversigt[[#This Row],[Udgifter]])","v":{"v":0,"d":"0.00"}},{"$f":"SUMIFS(UdgOkt[Beløb],UdgOkt[Kategori],UdgiftsOversigt[[#This Row],[Udgifter]])","v":{"v":0,"d":"0.00"}},{"$f":"SUMIFS(UdgNov[Beløb],UdgNov[Kategori],UdgiftsOversigt[[#This Row],[Udgifter]])","v":{"v":0,"d":"0.00"}},{"$f":"SUMIFS(UdgDec[Beløb],UdgDec[Kategori],UdgiftsOversigt[[#This Row],[Udgifter]])","v":{"v":187,"d":"187.00"}},{"$f":"SUM(UdgiftsOversigt[[#This Row],[Jan]:[Dec]])","v":{"v":1519,"d":"1,519.00"}}]
["Udgift 5",{"$f":"SUMIFS(UdgJan[Beløb],UdgJan[Kategori],UdgiftsOversigt[[#This Row],[Udgifter]])","v":{"v":54,"d":"54.00"}},{"$f":"SUMIFS(UdgFeb[Beløb],UdgFeb[Kategori],UdgiftsOversigt[[#This Row],[Udgifter]])","v":{"v":54,"d":"54.00"}},{"$f":"SUMIFS(UdgMar[Beløb],UdgMar[Kategori],UdgiftsOversigt[[#This Row],[Udgifter]])","v":{"v":109,"d":"109.00"}},{"$f":"SUMIFS(UdgApr[Beløb],UdgApr[Kategori],UdgiftsOversigt[[#This Row],[Udgifter]])","v":{"v":98,"d":"98.00"}},{"$f":"SUMIFS(UdgMaj[Beløb],UdgMaj[Kategori],UdgiftsOversigt[[#This Row],[Udgifter]])","v":{"v":33,"d":"33.00"}},{"$f":"SUMIFS(UdgJun[Beløb],UdgJun[Kategori],UdgiftsOversigt[[#This Row],[Udgifter]])","v":{"v":441,"d":"441.00"}},{"$f":"SUMIFS(UdgJul[Beløb],UdgJun[Kategori],UdgiftsOversigt[[#This Row],[Udgifter]])","v":{"v":0,"d":"0.00"}},{"$f":"SUMIFS(UdgAug[Beløb],UdgAug[Kategori],UdgiftsOversigt[[#This Row],[Udgifter]])","v":{"v":0,"d":"0.00"}},{"$f":"SUMIFS(UdgSep[Beløb],UdgSep[Kategori],UdgiftsOversigt[[#This Row],[Udgifter]])","v":{"v":0,"d":"0.00"}},{"$f":"SUMIFS(UdgOkt[Beløb],UdgOkt[Kategori],UdgiftsOversigt[[#This Row],[Udgifter]])","v":{"v":0,"d":"0.00"}},{"$f":"SUMIFS(UdgNov[Beløb],UdgNov[Kategori],UdgiftsOversigt[[#This Row],[Udgifter]])","v":{"v":0,"d":"0.00"}},{"$f":"SUMIFS(UdgDec[Beløb],UdgDec[Kategori],UdgiftsOversigt[[#This Row],[Udgifter]])","v":{"v":99,"d":"99.00"}},{"$f":"SUM(UdgiftsOversigt[[#This Row],[Jan]:[Dec]])","v":{"v":888,"d":"888.00"}}]
["I alt",{"$f":"SUBTOTAL(109,UdgiftsOversigt[Jan])","v":{"v":861,"d":"861.00"}},{"$f":"SUBTOTAL(109,UdgiftsOversigt[Feb])","v":{"v":861,"d":"861.00"}},{"$f":"SUBTOTAL(109,UdgiftsOversigt[Mar])","v":{"v":574,"d":"574.00"}},{"$f":"SUBTOTAL(109,UdgiftsOversigt[Apr])","v":{"v":817,"d":"817.00"}},{"$f":"SUBTOTAL(109,UdgiftsOversigt[Maj])","v":{"v":977,"d":"977.00"}},{"$f":"SUBTOTAL(109,UdgiftsOversigt[Jun])","v":{"v":1049,"d":"1,049.00"}},{"$f":"SUBTOTAL(109,UdgiftsOversigt[Jul])","v":{"v":0,"d":"0.00"}},{"$f":"SUBTOTAL(109,UdgiftsOversigt[Aug])","v":{"v":0,"d":"0.00"}},{"$f":"SUBTOTAL(109,UdgiftsOversigt[Sep])","v":{"v":0,"d":"0.00"}},{"$f":"SUBTOTAL(109,UdgiftsOversigt[Okt])","v":{"v":0,"d":"0.00"}},{"$f":"SUBTOTAL(109,UdgiftsOversigt[Nov])","v":{"v":0,"d":"0.00"}},{"$f":"SUBTOTAL(109,UdgiftsOversigt[Dec])","v":{"v":1049,"d":"1,049.00"}},{"$f":"SUBTOTAL(109,UdgiftsOversigt[I alt])","v":{"v":6188,"d":"6,188.00"}}]

{"sheet":"jan","index":2,"n_rows":9,"n_cols":5,"rows_kept":9,"merged":[[0,0,0,2]]}
["UDGIFTER I JANUAR",null,null,"Oversigt","Tips"]
["Dato","PO-nummer","Beløb","Kategori","Beskrivelse"]
[{"$f":"DATE(YEAR(TODAY()),1,4)","v":"2016-01-04"},"A-12345",{"v":33,"d":"33.00"},"Udgift 1","Forsyninger"]
[{"$f":"DATE(YEAR(TODAY()),1,5)","v":"2016-01-05"},"A-12346",{"v":238,"d":"238.00"},"Udgift 2"]
[null,null,{"v":342,"d":"342.00"},"Udgift 4"]
[null,null,{"v":110,"d":"110.00"},"Udgift 3"]
[null,null,{"v":84,"d":"84.00"},"Udgift 4"]
[null,null,{"v":54,"d":"54.00"},"Udgift 5"]
["I alt",null,{"$f":"SUBTOTAL(109,UdgJan[Beløb])","v":{"v":861,"d":"861.00"}}]

{"sheet":"feb","index":3,"n_rows":9,"n_cols":5,"rows_kept":9,"merged":[[0,0,0,2]]}
["UDGIFTER I FEBRUAR",null,null,"Oversigt","Tips"]
["Dato","PO-nummer","Beløb","Kategori","Beskrivelse"]
[{"$f":"DATE(YEAR(TODAY()),2,3)","v":"2016-02-03"},"A-12345",{"v":33,"d":"33.00"},"Udgift 1","Forsyninger"]
[{"$f":"DATE(YEAR(TODAY()),2,4)","v":"2016-02-04"},"A-12346",{"v":238,"d":"238.00"},"Udgift 2"]
[null,null,{"v":342,"d":"342.00"},"Udgift 1"]
[null,null,{"v":110,"d":"110.00"},"Udgift 3"]
[null,null,{"v":84,"d":"84.00"},"Udgift 4"]
[null,null,{"v":54,"d":"54.00"},"Udgift 5"]
["I alt",null,{"$f":"SUBTOTAL(109,UdgFeb[Beløb])","v":{"v":861,"d":"861.00"}}]

{"sheet":"mar","index":4,"n_rows":9,"n_cols":5,"rows_kept":9,"merged":[[0,0,0,2]]}
["UDGIFTER I MARTS",null,null,"Oversigt","Tips"]
["Dato","PO-nummer","Beløb","Kategori","Beskrivelse"]
[{"$f":"DATE(YEAR(TODAY()),3,5)","v":"2016-03-05"},"A-12345",{"v":33,"d":"33.00"},"Udgift 1","Forsyninger"]
[{"$f":"DATE(YEAR(TODAY()),3,6)","v":"2016-03-06"},"A-12346",{"v":238,"d":"238.00"},"Udgift 2"]
[null,null,{"v":55,"d":"55.00"},"Udgift 5"]
[null,null,{"v":110,"d":"110.00"},"Udgift 3"]
[null,null,{"v":84,"d":"84.00"},"Udgift 4"]
[null,null,{"v":54,"d":"54.00"},"Udgift 5"]
["I alt",null,{"$f":"SUBTOTAL(109,UdgMar[Beløb])","v":{"v":574,"d":"574.00"}}]

{"sheet":"apr","index":5,"n_rows":9,"n_cols":5,"rows_kept":9,"merged":[[0,0,0,2]]}
["UDGIFTER I APRIL",null,null,"Oversigt","Tips"]
["Dato","PO-nummer","Beløb","Kategori","Beskrivelse"]
[{"$f":"DATE(YEAR(TODAY()),4,4)","v":"2016-04-04"},"A-12345",{"v":45,"d":"45.00"},"Udgift 1","Forsyninger"]
[{"$f":"DATE(YEAR(TODAY()),4,8)","v":"2016-04-08"},"A-12346",{"v":123,"d":"123.00"},"Udgift 2"]
[null,null,{"v":342,"d":"342.00"},"Udgift 4"]
[null,null,{"v":125,"d":"125.00"},"Udgift 3"]
[null,null,{"v":84,"d":"84.00"},"Udgift 4"]
[null,null,{"v":98,"d":"98.00"},"Udgift 5"]
["I alt",null,{"$f":"SUBTOTAL(109,UdgApr[Beløb])","v":{"v":817,"d":"817.00"}}]

{"sheet":"maj","index":6,"n_rows":9,"n_cols":5,"rows_kept":9,"merged":[[0,0,0,2]]}
["UDGIFTER I MAJ",null,null,"Oversigt","Tips"]
["Dato","PO-nummer","Beløb","Kategori","Beskrivelse"]
[{"$f":"DATE(YEAR(TODAY()),5,3)","v":"2016-05-03"},"A-12345",{"v":33,"d":"33.00"},"Udgift 1","Forsyninger"]
[{"$f":"DATE(YEAR(TODAY()),5,8)","v":"2016-05-08"},"A-12346",{"v":111,"d":"111.00"},"Udgift 2"]
[null,null,{"v":342,"d":"342.00"},"Udgift 1"]
[null,null,{"v":333,"d":"333.00"},"Udgift 3"]
[null,null,{"v":125,"d":"125.00"},"Udgift 4"]
[null,null,{"v":33,"d":"33.00"},"Udgift 5"]
["I alt",null,{"$f":"SUBTOTAL(109,UdgMaj[Beløb])","v":{"v":977,"d":"977.00"}}]

{"sheet":"jun","index":7,"n_rows":9,"n_cols":5,"rows_kept":9,"merged":[[0,0,0,2]]}
["UDGIFTER I JUNI",null,null,"Oversigt","Tips"]
["Dato","PO-nummer","Beløb","Kategori","Beskrivelse"]
[{"$f":"DATE(YEAR(TODAY()),6,7)","v":"2016-06-07"},"A-12345",{"v":201,"d":"201.00"},"Udgift 1","Forsyninger"]
[{"$f":"DATE(YEAR(TODAY()),6,8)","v":"2016-06-08"},"A-12346",{"v":98,"d":"98.00"},"Udgift 2"]
[null,null,{"v":342,"d":"342.00"},"Udgift 5"]
[null,null,{"v":122,"d":"122.00"},"Udgift 3"]
[null,null,{"v":187,"d":"187.00"},"Udgift 4"]
[null,null,{"v":99,"d":"99.00"},"Udgift 5"]
["I alt",null,{"$f":"SUBTOTAL(109,UdgJun[Beløb])","v":{"v":1049,"d":"1,049.00"}}]

{"sheet":"jul","index":8,"n_rows":9,"n_cols":5,"rows_kept":9,"merged":[[0,0,0,2]]}
["UDGIFTER I JULI",null,null,"Oversigt","Tips"]
["Dato","PO-nummer","Beløb","Kategori","Beskrivelse"]
[{"$f":"DATE(YEAR(TODAY()),7,9)","v":"2016-07-09"},"A-12345",null,"Udgift 1","Forsyninger"]
[{"$f":"DATE(YEAR(TODAY()),7,14)","v":"2016-07-14"},"A-12346",null,"Udgift 2"]
[{"$nulls":3},"Udgift 2"]
[{"$nulls":3},"Udgift 3"]
[{"$nulls":3},"Udgift 4"]
[{"$nulls":3},"Udgift 5"]
["I alt",null,{"$f":"SUBTOTAL(109,UdgJul[Beløb])","v":{"v":0,"d":"0.00"}}]

{"sheet":"aug","index":9,"n_rows":9,"n_cols":5,"rows_kept":9,"merged":[[0,0,0,2]]}
["UDGIFTER I AUGUST",null,null,"Oversigt","Tips"]
["Dato","PO-nummer","Beløb","Kategori","Beskrivelse"]
[{"$f":"DATE(YEAR(TODAY()),8,8)","v":"2016-08-08"},"A-12345",null,"Udgift 1","Forsyninger"]
[{"$f":"DATE(YEAR(TODAY()),8,9)","v":"2016-08-09"},"A-12346",null,"Udgift 2"]
[{"$nulls":3},"Udgift 2"]
[{"$nulls":3},"Udgift 3"]
[{"$nulls":3},"Udgift 4"]
[{"$nulls":3},"Udgift 5"]
["I alt",null,{"$f":"SUBTOTAL(109,UdgAug[Beløb])","v":{"v":0,"d":"0.00"}}]

{"sheet":"sep","index":10,"n_rows":9,"n_cols":5,"rows_kept":9,"merged":[[0,0,0,2]]}
["UDGIFTER I SEPTEMBER",null,null,"Oversigt","Tips"]
["Dato","PO-nummer","Beløb","Kategori","Beskrivelse"]
[{"$f":"DATE(YEAR(TODAY()),9,9)","v":"2016-09-09"},"A-12345",null,"Udgift 1","Forsyninger"]
[{"$f":"DATE(YEAR(TODAY()),9,15)","v":"2016-09-15"},"A-12346",null,"Udgift 2"]
[{"$nulls":3},"Udgift 2"]
[{"$nulls":3},"Udgift 3"]
[{"$nulls":3},"Udgift 4"]
[{"$nulls":3},"Udgift 5"]
["I alt",null,{"$f":"SUBTOTAL(109,UdgSep[Beløb])","v":{"v":0,"d":"0.00"}}]

{"sheet":"okt","index":11,"n_rows":9,"n_cols":5,"rows_kept":9,"merged":[[0,0,0,2]]}
["UDGIFTER I OKTOBER",null,null,"Oversigt","Tips"]
["Dato","PO-nummer","Beløb","Kategori","Beskrivelse"]
[{"$f":"DATE(YEAR(TODAY()),10,10)","v":"2016-10-10"},"A-12345",null,"Udgift 1","Forsyninger"]
[{"$f":"DATE(YEAR(TODAY()),10,21)","v":"2016-10-21"},"A-12346",null,"Udgift 2"]
[{"$nulls":3},"Udgift 2"]
[{"$nulls":3},"Udgift 3"]
[{"$nulls":3},"Udgift 4"]
[{"$nulls":3},"Udgift 5"]
["I alt",null,{"$f":"SUBTOTAL(109,UdgOkt[Beløb])","v":{"v":0,"d":"0.00"}}]

{"sheet":"nov","index":12,"n_rows":9,"n_cols":5,"rows_kept":9,"merged":[[0,0,0,2]]}
["UDGIFTER I NOVEMBER",null,null,"Oversigt","Tips"]
["Dato","PO-nummer","Beløb","Kategori","Beskrivelse"]
[{"$f":"DATE(YEAR(TODAY()),11,14)","v":"2016-11-14"},"A-12345",null,"Udgift 1","Forsyninger"]
[{"$f":"DATE(YEAR(TODAY()),11,21)","v":"2016-11-21"},"A-12346",null,"Udgift 2"]
[{"$nulls":3},"Udgift 2"]
[{"$nulls":3},"Udgift 3"]
[{"$nulls":3},"Udgift 4"]
[{"$nulls":3},"Udgift 5"]
["I alt",null,{"$f":"SUBTOTAL(109,UdgNov[Beløb])","v":{"v":0,"d":"0.00"}}]

{"sheet":"dec","index":13,"n_rows":9,"n_cols":5,"rows_kept":9,"merged":[[0,0,0,2]]}
["UDGIFTER I DECEMBER",null,null,"Oversigt","Tips"]
["Dato","PO-nummer","Beløb","Kategori","Beskrivelse"]
[{"$f":"DATE(YEAR(TODAY()),12,2)","v":"2016-12-02"},"A-12345",{"v":201,"d":"201.00"},"Udgift 1","Forsyninger"]
[{"$f":"DATE(YEAR(TODAY()),12,24)","v":"2016-12-24"},"A-12346",{"v":98,"d":"98.00"},"Udgift 2"]
[null,null,{"v":342,"d":"342.00"},"Udgift 2"]
[null,null,{"v":122,"d":"122.00"},"Udgift 3"]
[null,null,{"v":187,"d":"187.00"},"Udgift 4"]
[null,null,{"v":99,"d":"99.00"},"Udgift 5"]
["I alt",null,{"$f":"SUBTOTAL(109,UdgDec[Beløb])","v":{"v":1049,"d":"1,049.00"}}]